Body Name,ONS SNAC ID,Pay Date,Transaction No,Amount �,Supplier Name,Company Registration No,Department,Account Name,CIPFA Service Reporting
Swale Borough Council,29UM,07/11/2018,1163306,225.00,A.C MACKLIN FENCING,10311550                 ,CAR PARKS,Maintenance - Grounds,Highway and Transport Services
Swale Borough Council,29UM,07/11/2018,1163306,300.00,A.C MACKLIN FENCING,10311550                 ,CAR PARKS,Maintenance - Grounds,Highway and Transport Services
Swale Borough Council,29UM,07/11/2018,1163312,110.00,A.C MACKLIN FENCING,10311550                 ,LEISURE & OPEN SPACES,Maintenance - Grounds,Cultural and Related Services
Swale Borough Council,29UM,07/11/2018,1163312,450.00,A.C MACKLIN FENCING,10311550                 ,LEISURE & OPEN SPACES,Maintenance - Grounds,Cultural and Related Services
Swale Borough Council,29UM,07/11/2018,1163146,408.38,ACORN MAINTENANCE SERVICES,3546898                  ,HOUSING SERVICES,Staying Put small repairs (contractors),Housing
Swale Borough Council,29UM,07/11/2018,1163147,355.80,ACORN MAINTENANCE SERVICES,3546898                  ,HOUSING SERVICES,Staying Put small repairs (contractors),Housing
Swale Borough Council,29UM,07/11/2018,1163335,270.00,ACORN MAINTENANCE SERVICES,3546898                  ,HOUSING SERVICES,Staying Put small repairs (contractors),Housing
Swale Borough Council,29UM,07/11/2018,1163460,1774.01,ACORN MAINTENANCE SERVICES,3546898                  ,HOUSING SERVICES,Housing Renovation Grants,Not used in this Structure
Swale Borough Council,29UM,07/11/2018,1163461,7083.68,ACORN MAINTENANCE SERVICES,3546898                  ,HOUSING SERVICES,Housing Renovation Grants,Not used in this Structure
Swale Borough Council,29UM,07/11/2018,1163462,948.55,ACORN MAINTENANCE SERVICES,3546898                  ,HOUSING SERVICES,Housing Renovation Grants,Not used in this Structure
Swale Borough Council,29UM,07/11/2018,1163309,444.50,AMETHYST HORTICULTURE LTD,4464660                  ,LEISURE & OPEN SPACES,Nursery Stock,Cultural and Related Services
Swale Borough Council,29UM,07/11/2018,1163264,12588.63,APCOA PARKING (UK) LTD,2572947                  ,CAR PARKS,Private Contractors,Highway and Transport Services
Swale Borough Council,29UM,07/11/2018,1163264,18882.95,APCOA PARKING (UK) LTD,2572947                  ,CAR PARKS,Private Contractors,Highway and Transport Services
Swale Borough Council,29UM,07/11/2018,1163384,52.00,ASHFORD CLEANING CONTRACTORS LTD,                         ,PROPERTY SERVICES,Service Contracts,Cultural and Related Services
Swale Borough Council,29UM,07/11/2018,1163384,50.00,ASHFORD CLEANING CONTRACTORS LTD,                         ,TOURISM & SPORTS DEVELOPMENT,Service Contracts,Cultural and Related Services
Swale Borough Council,29UM,07/11/2018,1163384,26.00,ASHFORD CLEANING CONTRACTORS LTD,                         ,COMMUNITY SAFETY,Service Contracts,Cultural and Related Services
Swale Borough Council,29UM,07/11/2018,1163384,310.00,ASHFORD CLEANING CONTRACTORS LTD,                         ,PROPERTY SERVICES,Service Contracts,Corporate & Democratic Core
Swale Borough Council,29UM,07/11/2018,1163280,3925.90,B W MAY AND SON LTD,1016572                  ,LEISURE & OPEN SPACES,Maintenance - Grounds,Environmental and Regulatory Services
Swale Borough Council,29UM,07/11/2018,1163382,405.94,BLENWOOD LTD,4383277                  ,LEISURE & OPEN SPACES,Maintenance - Grounds,Environmental and Regulatory Services
Swale Borough Council,29UM,07/11/2018,1163383,1609.05,BLENWOOD LTD,4383277                  ,LEISURE & OPEN SPACES,Maintenance - Grounds,Cultural and Related Services
Swale Borough Council,29UM,07/11/2018,1163358,500.00,BRAMLEY ASSOCIATES,08764562                 ,DIRECTOR OF REGENERATION,Capitalised Fees And Charges,Not used in this Structure
Swale Borough Council,29UM,07/11/2018,1163434,1344.71,BT REDCARE,1800000                  ,COMMUNITY SAFETY,CCTV Line Rental,Environmental and Regulatory Services
Swale Borough Council,29UM,07/11/2018,1163352,362.00,CAMPBELL ASSOCIATES,                         ,MKS ENVIRONMENTAL SERVICES,Equipment Maintenance,Environmental and Regulatory Services
Swale Borough Council,29UM,07/11/2018,1163110,1935.00,CANT. ARCHAEOLOGICAL TRUST LTD,01441517                 ,PROPERTY SERVICES,Consultancy/Specialist Advice,Internal Trading Cost Centres
Swale Borough Council,29UM,07/11/2018,1162923,273.00,CBS MAINTENANCE SERVICES LTD,                         ,LEISURE & OPEN SPACES,Non-Planned Building Maintenance,Cultural and Related Services
Swale Borough Council,29UM,07/11/2018,1162461,295.00,CIPFA BUSINESS LTD,2376684                  ,REVENUE SERVICES,Fees and Services,Housing
Swale Borough Council,29UM,07/11/2018,1163260,250.00,COASTAL BODY REPAIRS LTD,                         ,SERVICE DELIVERY,Hire & Leases,Cultural and Related Services
Swale Borough Council,29UM,07/11/2018,1163456,7238.25,COLDWELL CONSTRUCTION LTD,4814340                  ,HOUSING SERVICES,Housing Renovation Grants,Not used in this Structure
Swale Borough Council,29UM,07/11/2018,1163457,4567.02,COLDWELL CONSTRUCTION LTD,4814340                  ,HOUSING SERVICES,Housing Renovation Grants,Not used in this Structure
Swale Borough Council,29UM,07/11/2018,1163364,1546.40,DHA PLANNING,2683290                  ,PROPERTY SERVICES,Consultancy/Specialist Advice,Internal Trading Cost Centres
Swale Borough Council,29UM,07/11/2018,1163463,2500.00,DOLPHIN STAIRLIFTS (KENT),04181846                 ,HOUSING SERVICES,Housing Renovation Grants,Not used in this Structure
Swale Borough Council,29UM,07/11/2018,1163464,12330.00,DOLPHIN STAIRLIFTS (KENT),04181846                 ,HOUSING SERVICES,Housing Renovation Grants,Not used in this Structure
Swale Borough Council,29UM,07/11/2018,1163465,12250.00,DOLPHIN STAIRLIFTS (KENT),04181846                 ,HOUSING SERVICES,Housing Renovation Grants,Not used in this Structure
Swale Borough Council,29UM,07/11/2018,1163034,1540.00,ENWA WATER TREATMENT,FC023654                 ,PROPERTY SERVICES,Service Contracts,Corporate & Democratic Core
Swale Borough Council,29UM,07/11/2018,1163411,2325.00,FIRST STOP HOUSING SOLUTION LTD,                         ,HOUSING SERVICES,NL (Nightly Lets) - Homelessness Landlord Payments,Housing
Swale Borough Council,29UM,07/11/2018,1163238,3992.55,GLASDON U.K.LIMITED,2160576                  ,ENVIRONMENTAL RESPONSE TEAM,Equipment Purchase,Planning and Development Services
Swale Borough Council,29UM,07/11/2018,1163333,1200.00,GRANSDEN CONSTRUCTION LTD,05643449                 ,DIRECTOR OF REGENERATION,Capitalised Fees And Charges,Not used in this Structure
Swale Borough Council,29UM,07/11/2018,1163334,488.00,HUBBARD & HOUGHTON CONSTRUCTION LTD,                         ,HOUSING SERVICES,Staying Put small repairs (contractors),Housing
Swale Borough Council,29UM,07/11/2018,1163455,6300.00,HUBBARD & HOUGHTON CONSTRUCTION LTD,                         ,HOUSING SERVICES,Housing Renovation Grants,Not used in this Structure
Swale Borough Council,29UM,07/11/2018,1163393,525.00,HYDRO DESCALING LTD,1304128                  ,LEISURE & OPEN SPACES,Maintenance - Grounds,Cultural and Related Services
Swale Borough Council,29UM,07/11/2018,1163374,1299.00,INTEGRITY PRINT LTD,GB927217815              ,CAR PARKS,External Permit Printing,Highway and Transport Services
Swale Borough Council,29UM,07/11/2018,1163426,532.00,INVICTA LAW LTD,10079679                 ,MKS LEGAL SERVICES,Legal Fees,Internal Trading Cost Centres
Swale Borough Council,29UM,07/11/2018,1163426,106.40,INVICTA LAW LTD,10079679                 ,MKS LEGAL SERVICES,Legal Fees,Internal Trading Cost Centres
Swale Borough Council,29UM,07/11/2018,1163427,711.30,INVICTA LAW LTD,10079679                 ,MKS LEGAL SERVICES,Legal Fees,Internal Trading Cost Centres
Swale Borough Council,29UM,07/11/2018,1163427,142.26,INVICTA LAW LTD,10079679                 ,MKS LEGAL SERVICES,Legal Fees,Internal Trading Cost Centres
Swale Borough Council,29UM,07/11/2018,1163365,11796.00,IWADE PARISH COUNCIL,                         ,PLANNING SERVICES,Payments in Year,Ledger/Suspense Codes
Swale Borough Council,29UM,07/11/2018,1163458,6703.55,J & D SYSTEMS,                         ,HOUSING SERVICES,Housing Renovation Grants,Not used in this Structure
Swale Borough Council,29UM,07/11/2018,1163459,8303.35,J & D SYSTEMS,                         ,HOUSING SERVICES,Housing Renovation Grants,Not used in this Structure
Swale Borough Council,29UM,07/11/2018,1163372,367.54,KERRY SCS LIMITED,6059349                  ,PROPERTY SERVICES,Service Contracts,Corporate & Democratic Core
Swale Borough Council,29UM,07/11/2018,1163315,300.00,LEMAR LIMITED,04350292                 ,SERVICE DELIVERY,Private Contractors - CIS,Highway and Transport Services
Swale Borough Council,29UM,07/11/2018,1163315,300.00,LEMAR LIMITED,04350292                 ,SERVICE DELIVERY,Private Contractors - CIS,Highway and Transport Services
Swale Borough Council,29UM,07/11/2018,1162640,26491.00,LINK PROPERTY GROUP,                         ,HOUSING SERVICES,NL (Nightly Lets) - Homelessness Landlord Payments,Housing
Swale Borough Council,29UM,07/11/2018,1163262,1260.00,LUSHLAND,4289261                  ,PLANNING SERVICES,Fees and Services,Planning and Development Services
Swale Borough Council,29UM,07/11/2018,1163354,343.44,LYRECO UK LTD,                         ,PROPERTY SERVICES,Paper,Internal Trading Cost Centres
Swale Borough Council,29UM,07/11/2018,1162894,1218.00,MAGEES GUESTHOUSE,                         ,HOUSING SERVICES,B & B - Homelessness Landlord Payments,Housing
Swale Borough Council,29UM,07/11/2018,1163002,808.00,MAGEES GUESTHOUSE,                         ,HOUSING SERVICES,B & B - Homelessness Landlord Payments,Housing
Swale Borough Council,29UM,07/11/2018,1163211,18263.95,MAIDSTONE BOROUGH COUNCIL,                         ,CONTRACT & PROCUREMENT,Equipment Purchase,Environmental and Regulatory Services
Swale Borough Council,29UM,07/11/2018,1163265,1215.00,MAYLOW CONSTRUCTION LTD,                         ,LEISURE & OPEN SPACES,Capital Constuction - CIS Works,Not used in this Structure
Swale Borough Council,29UM,07/11/2018,1162940,952.00,MEDWAY ACCOMMODATION LIMITED,                         ,HOUSING SERVICES,B & B - Homelessness Landlord Payments,Housing
Swale Borough Council,29UM,07/11/2018,1162940,198.33,MEDWAY ACCOMMODATION LIMITED,                         ,HOUSING SERVICES,B & B - Homelessness Landlord Payments,Housing
Swale Borough Council,29UM,07/11/2018,1163097,1180.00,MEDWAY ACCOMMODATION LIMITED,                         ,HOUSING SERVICES,B & B - Homelessness Landlord Payments,Housing
Swale Borough Council,29UM,07/11/2018,1163097,245.83,MEDWAY ACCOMMODATION LIMITED,                         ,HOUSING SERVICES,B & B - Homelessness Landlord Payments,Housing
Swale Borough Council,29UM,07/11/2018,1163261,476.00,NAGELS UK LIMITED,3695705                  ,CAR PARKS,Car Park Machine Tickets,Highway and Transport Services
Swale Borough Council,29UM,07/11/2018,1163431,3675.00,P BINNIE CONSULTANCY LTD,07794784                 ,ECONOMIC DEVELOPMENT,Consultancy/Specialist Advice,Planning and Development Services
Swale Borough Council,29UM,07/11/2018,1163436,338.33,PHS GROUP LTD,770813                   ,CONTRACT & PROCUREMENT,Equipment Purchase,Environmental and Regulatory Services
Swale Borough Council,29UM,07/11/2018,1163279,300.00,QUEENBOROUGH TOWN COUNCIL,                         ,COMMUNITY SAFETY,Private Contractors - Cleaning,Cultural and Related Services
Swale Borough Council,29UM,07/11/2018,1163407,288.00,REGENT GUEST HOUSE LTD,06537084                 ,HOUSING SERVICES,B & B - Homelessness Landlord Payments,Housing
Swale Borough Council,29UM,07/11/2018,1163311,395.00,ROSPA,3021397                  ,CHIEF EXECUTIVE,Prizes/Awards,Corporate & Democratic Core
Swale Borough Council,29UM,07/11/2018,1163252,1019.62,ROYAL MAIL GROUP LTD,4138203                  ,REVENUE SERVICES,Postage,Central Services to the Public
Swale Borough Council,29UM,07/11/2018,1163421,1340.93,ROYAL MAIL GROUP LTD,4138203                  ,PROPERTY SERVICES,Postage,Holding Codes
Swale Borough Council,29UM,07/11/2018,1163363,375.00,RURAL PLANNING LTD,4426249                  ,PLANNING SERVICES,Fees and Services,Planning and Development Services
Swale Borough Council,29UM,07/11/2018,1163173,988.96,SERCO LEISURE OPERATING LIMITED,04687478                 ,PROPERTY SERVICES,Service Contracts,Cultural and Related Services
Swale Borough Council,29UM,07/11/2018,1163466,2035.67,SOUTH EAST BUILDING CO LTD,1786838                  ,HOUSING SERVICES,Housing Renovation Grants,Not used in this Structure
Swale Borough Council,29UM,07/11/2018,1163322,35000.00,THE DOLPHIN SAILING BARGE MUSEUM TRUST,                         ,ECONOMY & COMMUNITIES,Communities Fund Expenditure,Ledger/Suspense Codes
Swale Borough Council,29UM,07/11/2018,1162539,5232.73,THE NATIONAL LEAFLET COMPANY,02569979                 ,COMMUNICATIONS,Postage,Corporate & Democratic Core
Swale Borough Council,29UM,07/11/2018,1163341,1425.00,THE OYSTER PARTNERSHIP,05020374                 ,PLANNING SERVICES,Agency/Contract Staff,Planning and Development Services
Swale Borough Council,29UM,07/11/2018,1163408,368.00,THOMSON REUTERS,1679046                  ,MKS LEGAL SERVICES,"Books, Journals & e - resources",Internal Trading Cost Centres
Swale Borough Council,29UM,07/11/2018,1163282,475.00,TOTAL CONTROL SERVICES LIMITED,02168265                 ,PROPERTY SERVICES,Service Contracts,Corporate & Democratic Core
Swale Borough Council,29UM,07/11/2018,1162951,1302.00,TRAFALGAR TAVERN LTD,07999329                 ,HOUSING SERVICES,B & B - Homelessness Landlord Payments,Housing
Swale Borough Council,29UM,07/11/2018,1162970,1041.00,TRAFALGAR TAVERN LTD,07999329                 ,HOUSING SERVICES,B & B - Homelessness Landlord Payments,Housing
Swale Borough Council,29UM,07/11/2018,1163115,927.00,TRAFALGAR TAVERN LTD,07999329                 ,HOUSING SERVICES,B & B - Homelessness Landlord Payments,Housing
Swale Borough Council,29UM,07/11/2018,1163139,-33.84,UNISON,                         ,HUMAN RESOURCES,Payroll - Unison Deductions Admin Charge,Corporate & Democratic Core
Swale Borough Council,29UM,07/11/2018,1163350,355.66,VANITORIALS LIMITED,3952938                  ,PROPERTY SERVICES,Cleaning Materials,Internal Trading Cost Centres
Swale Borough Council,29UM,07/11/2018,1163294,1200.00,WEALD WOODSCAPES LTD,8028446                  ,LEISURE & OPEN SPACES,Maintenance - Grounds,Cultural and Related Services
Swale Borough Council,29UM,07/11/2018,1163297,310.00,WILLOW TREE HOME SOLUTIONS LTD,                         ,HOUSING SERVICES,Staying Put small repairs (contractors),Housing
Swale Borough Council,29UM,07/11/2018,1163338,835.00,WYNNE-WILLIAMS ASSOCIATES LTD,5148770                  ,LEISURE & OPEN SPACES,Capitalised Fees And Charges,Not used in this Structure
Swale Borough Council,29UM,07/11/2018,1163339,8500.00,WYNNE-WILLIAMS ASSOCIATES LTD,5148770                  ,LEISURE & OPEN SPACES,Capitalised Fees And Charges,Not used in this Structure
Swale Borough Council,29UM,14/11/2018,1163366,300.00,1ST IWADE RAINBOW UNIT,                         ,ECONOMY & COMMUNITIES,Grants & Subscriptions,Central Services to the Public
Swale Borough Council,29UM,14/11/2018,1163537,452.78,ADELANTE SOFTWARE LTD,4450760                  ,REVENUE SERVICES,Commission Paid,Central Services to the Public
Swale Borough Council,29UM,14/11/2018,1163537,12.68,ADELANTE SOFTWARE LTD,4450760                  ,REVENUE SERVICES,Commission Paid,Housing
Swale Borough Council,29UM,14/11/2018,1163537,131.12,ADELANTE SOFTWARE LTD,4450760                  ,EXCHEQUER,Commission Paid,Internal Trading Cost Centres
Swale Borough Council,29UM,14/11/2018,1163530,2839.05,AECOM INFRASTRUCTURE & ENV UK LTD,880328                   ,PLANNING SERVICES,Fees and Services,Planning and Development Services
Swale Borough Council,29UM,14/11/2018,1163538,2694.11,ALLPAY LTD,02933191                 ,REVENUE SERVICES,Bank Charges Pay Point,Central Services to the Public
Swale Borough Council,29UM,14/11/2018,1163538,43.07,ALLPAY LTD,02933191                 ,REVENUE SERVICES,Bank Charges Pay Point,Housing
Swale Borough Council,29UM,14/11/2018,1163538,27.18,ALLPAY LTD,02933191                 ,EXCHEQUER,Bank Charges Pay Point,Internal Trading Cost Centres
Swale Borough Council,29UM,14/11/2018,1163375,47.16,ALLSTAR BUSINESS SOLUTIONS LTD - (DT),1073098                  ,DEMOCRATIC & ELECTORAL SERVICES,Petrol/Derv & Oil,Corporate & Democratic Core
Swale Borough Council,29UM,14/11/2018,1163375,217.35,ALLSTAR BUSINESS SOLUTIONS LTD - (DT),1073098                  ,SERVICE DELIVERY,Petrol/Derv & Oil,Cultural and Related Services
Swale Borough Council,29UM,14/11/2018,1163375,372.56,ALLSTAR BUSINESS SOLUTIONS LTD - (DT),1073098                  ,ENVIRONMENTAL RESPONSE TEAM,Fuel For Contract Vehicles,Internal Trading Cost Centres
Swale Borough Council,29UM,14/11/2018,1163375,135.20,ALLSTAR BUSINESS SOLUTIONS LTD - (DT),1073098                  ,LEISURE & OPEN SPACES,Fuel For Contract Vehicles,Cultural and Related Services
Swale Borough Council,29UM,14/11/2018,1163375,58.99,ALLSTAR BUSINESS SOLUTIONS LTD - (DT),1073098                  ,ENVIRONMENTAL RESPONSE TEAM,Fuel For Contract Vehicles,Environmental and Regulatory Services
Swale Borough Council,29UM,14/11/2018,1163409,730.00,ARCHWAY HIGHWAY SERVICES,07894230                 ,CAR PARKS,Road Lining,Highway and Transport Services
Swale Borough Council,29UM,14/11/2018,1163416,2090.00,ARVATO GOVERNMENT SERVICES LTD,5429280                  ,REVENUE SERVICES,Fees and Services,Central Services to the Public
Swale Borough Council,29UM,14/11/2018,1163343,3200.67,BLENWOOD LTD,4383277                  ,LEISURE & OPEN SPACES,Grounds Maint Suspense,Cultural and Related Services
Swale Borough Council,29UM,14/11/2018,1163549,644.93,BLENWOOD LTD,4383277                  ,PLANNING SERVICES,Fees and Services,Planning and Development Services
Swale Borough Council,29UM,14/11/2018,1163553,2342.05,BLENWOOD LTD,4383277                  ,LEISURE & OPEN SPACES,Maintenance - Grounds,Environmental and Regulatory Services
Swale Borough Council,29UM,14/11/2018,1163554,884.78,BLENWOOD LTD,4383277                  ,LEISURE & OPEN SPACES,Maintenance - Grounds,Cultural and Related Services
Swale Borough Council,29UM,14/11/2018,1163277,14000.00,BLOOM PROCUREMENT SERVICES LTD,08045123                 ,PLANNING SERVICES,Fees and Services,Planning and Development Services
Swale Borough Council,29UM,14/11/2018,1163566,2160.00,BLOOM PROCUREMENT SERVICES LTD,08045123                 ,FINANCIAL SERVICES,STC - Capitalised Fees And Charges,Not used in this Structure
Swale Borough Council,29UM,14/11/2018,1163566,240.00,BLOOM PROCUREMENT SERVICES LTD,08045123                 ,FINANCIAL SERVICES,STC - Capitalised Fees And Charges,Not used in this Structure
Swale Borough Council,29UM,14/11/2018,1163367,700.00,BLUE TOWN REMEMBERED,                         ,ECONOMY & COMMUNITIES,Grants & Subscriptions,Central Services to the Public
Swale Borough Council,29UM,14/11/2018,1163410,9690.43,CAPITA BUSINESS SERVICES LTD,                         ,REVENUE SERVICES,Computer Equipment & Materials,Housing
Swale Borough Council,29UM,14/11/2018,1163448,950.00,CHILDREN & FAMILIES LIMITED,                         ,ECONOMY & COMMUNITIES,Grants & Subscriptions,Central Services to the Public
Swale Borough Council,29UM,14/11/2018,1163528,295.00,CIPFA BUSINESS LTD,2376684                  ,REVENUE SERVICES,Fees and Services,Housing
Swale Borough Council,29UM,14/11/2018,1163323,33357.50,CITIZENS ADVICE BUREAU IN SWALE,5052691                  ,TOURISM & SPORTS DEVELOPMENT,Voluntary Organisations Grants,Central Services to the Public
Swale Borough Council,29UM,14/11/2018,1163439,4131.83,COBALT TELEPHONE TECHNOLOGIES LIMITED,03151938                 ,CAR PARKS,Fees - Licence,Highway and Transport Services
Swale Borough Council,29UM,14/11/2018,1163475,10560.00,COMPLETE IT SYSTEMS LTD,06224858                 ,MKS ICT,Computer Equipment,Not used in this Structure
Swale Borough Council,29UM,14/11/2018,1163582,3790.00,DANIEL CONNAL PARTNERSHIP,OC310651                 ,FINANCIAL SERVICES,STC - Capitalised Fees And Charges,Not used in this Structure
Swale Borough Council,29UM,14/11/2018,1163595,8933.07,DAYTRAD LIMITED,7654373                  ,HOUSING SERVICES,Housing Renovation Grants,Not used in this Structure
Swale Borough Council,29UM,14/11/2018,1163486,326.58,DCB (KENT) LIMITED,03532339                 ,LEISURE & OPEN SPACES,Non-Planned Building Maintenance,Environmental and Regulatory Services
Swale Borough Council,29UM,14/11/2018,1163486,108.74,DCB (KENT) LIMITED,03532339                 ,LEISURE & OPEN SPACES,Non-Planned Building Maintenance,Environmental and Regulatory Services
Swale Borough Council,29UM,14/11/2018,1163486,189.50,DCB (KENT) LIMITED,03532339                 ,HOUSING SERVICES,General Maintenance,Housing
Swale Borough Council,29UM,14/11/2018,1163486,116.22,DCB (KENT) LIMITED,03532339                 ,PROPERTY SERVICES,Non-Planned Building Maintenance,Corporate & Democratic Core
Swale Borough Council,29UM,14/11/2018,1163486,398.40,DCB (KENT) LIMITED,03532339                 ,PROPERTY SERVICES,Non-Planned Building Maintenance,Corporate & Democratic Core
Swale Borough Council,29UM,14/11/2018,1163486,274.86,DCB (KENT) LIMITED,03532339                 ,PROPERTY SERVICES,Non-Planned Building Maintenance,Corporate & Democratic Core
Swale Borough Council,29UM,14/11/2018,1163486,1055.44,DCB (KENT) LIMITED,03532339                 ,PROPERTY SERVICES,Non-Planned Building Maintenance,Corporate & Democratic Core
Swale Borough Council,29UM,14/11/2018,1163486,45.00,DCB (KENT) LIMITED,03532339                 ,CONTRACT & PROCUREMENT,Non-Planned Building Maintenance,Environmental and Regulatory Services
Swale Borough Council,29UM,14/11/2018,1163486,35.18,DCB (KENT) LIMITED,03532339                 ,CONTRACT & PROCUREMENT,Non-Planned Building Maintenance,Environmental and Regulatory Services
Swale Borough Council,29UM,14/11/2018,1163378,308.00,DISCLOSURE & BARRING SERVICE (DT),                         ,LICENCING,Fees and Services,Environmental and Regulatory Services
Swale Borough Council,29UM,14/11/2018,1163597,2600.00,DOLPHIN STAIRLIFTS (KENT),04181846                 ,HOUSING SERVICES,Housing Renovation Grants,Not used in this Structure
Swale Borough Council,29UM,14/11/2018,1163585,1200.00,FAVERSHAM TOWN COUNCIL,                         ,ECONOMY & COMMUNITIES,Grants & Subscriptions,Central Services to the Public
Swale Borough Council,29UM,14/11/2018,1163586,850.00,FAVERSHAM UMBRELLA,                         ,ECONOMY & COMMUNITIES,Grants & Subscriptions,Central Services to the Public
Swale Borough Council,29UM,14/11/2018,1163542,420.00,GARDNER CROFT LLP,OC352508                 ,FINANCIAL SERVICES,Fees and Services,Internal Trading Cost Centres
Swale Borough Council,29UM,14/11/2018,1163515,7995.00,HARBOUR GARAGE (WHITSTABLE) LTD,                         ,FINANCIAL SERVICES,Payments in Year - Car Loan,Ledger/Suspense Codes
Swale Borough Council,29UM,14/11/2018,1163598,2342.70,HUBBARD & HOUGHTON CONSTRUCTION LTD,                         ,HOUSING SERVICES,Housing Renovation Grants,Not used in this Structure
Swale Borough Council,29UM,14/11/2018,1163599,1927.10,HUBBARD & HOUGHTON CONSTRUCTION LTD,                         ,HOUSING SERVICES,Housing Renovation Grants,Not used in this Structure
Swale Borough Council,29UM,14/11/2018,1163637,474565.71,HUBER CAR PARK SYST INTL GMBH (DT),                         ,FINANCIAL SERVICES,STC - Capitalised Fees And Charges,Not used in this Structure
Swale Borough Council,29UM,14/11/2018,1163559,4000.00,IAN SAYER & Co,                         ,FINANCIAL SERVICES,STC - Capitalised Fees And Charges,Not used in this Structure
Swale Borough Council,29UM,14/11/2018,1163510,1137.50,INVVU CONSTRUCTION CONSULTANTS LTD,10967367                 ,PLANNING SERVICES,Payments in Year,Ledger/Suspense Codes
Swale Borough Council,29UM,14/11/2018,1163510,567.50,INVVU CONSTRUCTION CONSULTANTS LTD,10967367                 ,PLANNING SERVICES,Payments in Year,Ledger/Suspense Codes
Swale Borough Council,29UM,14/11/2018,1163420,300.00,J N CLEARANCE,                         ,LEISURE & OPEN SPACES,Maintenance - Grounds,Environmental and Regulatory Services
Swale Borough Council,29UM,14/11/2018,1163420,300.00,J N CLEARANCE,                         ,LEISURE & OPEN SPACES,Maintenance - Grounds,Cultural and Related Services
Swale Borough Council,29UM,14/11/2018,1163420,600.00,J N CLEARANCE,                         ,LEISURE & OPEN SPACES,Maintenance - Grounds,Cultural and Related Services
Swale Borough Council,29UM,14/11/2018,1163487,326.97,KABA LTD,3792985                  ,COMMUNITY SAFETY,Fees and Services,Environmental and Regulatory Services
Swale Borough Council,29UM,14/11/2018,1163385,6080.60,KINGDOM SECURITY LIMITED,2795197                  ,ENVIRONMENTAL RESPONSE TEAM,Fees and Services,Planning and Development Services
Swale Borough Council,29UM,14/11/2018,1163649,21.00,LAND REGISTRY - (DT),                         ,COMMUNITY SAFETY,Fees - Land Registry,Environmental and Regulatory Services
Swale Borough Council,29UM,14/11/2018,1163649,106.00,LAND REGISTRY - (DT),                         ,PROPERTY SERVICES,Fees - Land Registry,Trading Undertaking
Swale Borough Council,29UM,14/11/2018,1163649,1150.00,LAND REGISTRY - (DT),                         ,REVENUE SERVICES,Fees - Land Registry,Central Services to the Public
Swale Borough Council,29UM,14/11/2018,1163649,90.00,LAND REGISTRY - (DT),                         ,PLANNING SERVICES,Fees - Land Registry,Planning and Development Services
Swale Borough Council,29UM,14/11/2018,1163649,46.00,LAND REGISTRY - (DT),                         ,SERVICE DELIVERY,Fees - Land Registry,Cultural and Related Services
Swale Borough Council,29UM,14/11/2018,1163649,18.00,LAND REGISTRY - (DT),                         ,SERVICE DELIVERY,Fees - Land Registry,Cultural and Related Services
Swale Borough Council,29UM,14/11/2018,1163649,6.00,LAND REGISTRY - (DT),                         ,HOUSING SERVICES,Fees - Land Registry,Housing
Swale Borough Council,29UM,14/11/2018,1163649,9.00,LAND REGISTRY - (DT),                         ,HOUSING SERVICES,Fees - Land Registry,Housing
Swale Borough Council,29UM,14/11/2018,1163649,3.00,LAND REGISTRY - (DT),                         ,REVENUE SERVICES,Fees - Land Registry,Housing
Swale Borough Council,29UM,14/11/2018,1163649,77.00,LAND REGISTRY - (DT),                         ,MKS LEGAL SERVICES,Fees - Land Registry,Internal Trading Cost Centres
Swale Borough Council,29UM,14/11/2018,1163649,61.00,LAND REGISTRY - (DT),                         ,PLANNING SERVICES,Fees - Land Registry,Internal Trading Cost Centres
Swale Borough Council,29UM,14/11/2018,1163649,168.00,LAND REGISTRY - (DT),                         ,ECONOMIC DEVELOPMENT,Fees - Land Registry,Internal Trading Cost Centres
Swale Borough Council,29UM,14/11/2018,1163649,12.00,LAND REGISTRY - (DT),                         ,CONTRACT & PROCUREMENT,Fees - Land Registry,Internal Trading Cost Centres
Swale Borough Council,29UM,14/11/2018,1163649,105.00,LAND REGISTRY - (DT),                         ,ENVIRONMENTAL RESPONSE TEAM,Fees - Land Registry,Internal Trading Cost Centres
Swale Borough Council,29UM,14/11/2018,1163649,24.00,LAND REGISTRY - (DT),                         ,MKS ENVIRONMENTAL SERVICES,Fees - Land Registry,Internal Trading Cost Centres
Swale Borough Council,29UM,14/11/2018,1163649,43.00,LAND REGISTRY - (DT),                         ,LEISURE & OPEN SPACES,Fees - Land Registry,Cultural and Related Services
Swale Borough Council,29UM,14/11/2018,1163649,60.00,LAND REGISTRY - (DT),                         ,HOUSING SERVICES,Fees - Land Registry,Housing
Swale Borough Council,29UM,14/11/2018,1163649,128.00,LAND REGISTRY - (DT),                         ,HOUSING SERVICES,Fees - Land Registry,Housing
Swale Borough Council,29UM,14/11/2018,1163517,150.00,LEMAR LIMITED,04350292                 ,SERVICE DELIVERY,Private Contractors - CIS,Highway and Transport Services
Swale Borough Council,29UM,14/11/2018,1163517,175.00,LEMAR LIMITED,04350292                 ,SERVICE DELIVERY,Private Contractors - CIS,Highway and Transport Services
Swale Borough Council,29UM,14/11/2018,1163519,500.00,LEMAR LIMITED,04350292                 ,CAR PARKS,Maintenance - Grounds,Highway and Transport Services
Swale Borough Council,29UM,14/11/2018,1163519,563.00,LEMAR LIMITED,04350292                 ,CAR PARKS,Maintenance - Grounds,Highway and Transport Services
Swale Borough Council,29UM,14/11/2018,1163210,75516.82,MAIDSTONE BOROUGH COUNCIL,                         ,CONTRACT & PROCUREMENT,Private Contractors,Environmental and Regulatory Services
Swale Borough Council,29UM,14/11/2018,1163210,208018.49,MAIDSTONE BOROUGH COUNCIL,                         ,CONTRACT & PROCUREMENT,Private Contractors,Environmental and Regulatory Services
Swale Borough Council,29UM,14/11/2018,1163548,750.00,ME TRAINING SERVICES,                         ,LEISURE & OPEN SPACES,Fees and Services,Cultural and Related Services
Swale Borough Council,29UM,14/11/2018,1163446,945.00,MINSTER (SHEPPEY) CRICKET CLUB,                         ,TOURISM & SPORTS DEVELOPMENT,Grants & Subscriptions,Cultural and Related Services
Swale Borough Council,29UM,14/11/2018,1163389,17994.20,MONITOR CLEANING SERVICES LTD,02526388                 ,CONTRACT & PROCUREMENT,Private Contractors,Environmental and Regulatory Services
Swale Borough Council,29UM,14/11/2018,1163479,950.00,MR J W GATES,                         ,LEISURE & OPEN SPACES,Maintenance - Grounds,Environmental and Regulatory Services
Swale Borough Council,29UM,14/11/2018,1163508,-523.20,PATROL,                         ,CAR PARKS,Parking Adjudication Fees,Highway and Transport Services
Swale Borough Council,29UM,14/11/2018,1163508,740.70,PATROL,                         ,CAR PARKS,Parking Adjudication Fees,Highway and Transport Services
Swale Borough Council,29UM,14/11/2018,1163508,-176.40,PATROL,                         ,CAR PARKS,Parking Adjudication Fees,Highway and Transport Services
Swale Borough Council,29UM,14/11/2018,1163508,740.70,PATROL,                         ,CAR PARKS,Parking Adjudication Fees,Highway and Transport Services
Swale Borough Council,29UM,14/11/2018,1163635,15697.00,PEAC HOLDINGS (UK) LTD (DT),3088213                  ,LEISURE & OPEN SPACES,Contracts,Cultural and Related Services
Swale Borough Council,29UM,14/11/2018,1163489,392.13,PREMIER PAPER GROUP LTD,                         ,PROPERTY SERVICES,Paper,Internal Trading Cost Centres
Swale Borough Council,29UM,14/11/2018,1163507,270.00,PSR LIGHTING AND SIGNS LTD,07159892                 ,CAR PARKS,Maintenance - Grounds,Highway and Transport Services
Swale Borough Council,29UM,14/11/2018,1163428,100.00,R & S INCE TARMACING LTD,4825501                  ,CAR PARKS,Maintenance - Grounds,Highway and Transport Services
Swale Borough Council,29UM,14/11/2018,1163428,150.00,R & S INCE TARMACING LTD,4825501                  ,CAR PARKS,Maintenance - Grounds,Highway and Transport Services
Swale Borough Council,29UM,14/11/2018,1163496,500.00,REDACTED PERSONAL INFORMATION,                         ,TOURISM & SPORTS DEVELOPMENT,Grants & Subscriptions,Cultural and Related Services
Swale Borough Council,29UM,14/11/2018,1163525,819.20,RSP RAIL TRAVEL ACCOUNT - (DT),                         ,FINANCIAL SERVICES,Travel Warrants (Staff Travel),Internal Trading Cost Centres
Swale Borough Council,29UM,14/11/2018,1163381,250.00,S & B CAR & VAN HIRE LTD,                         ,LEISURE & OPEN SPACES,Other Vehicle Expenses,Cultural and Related Services
Swale Borough Council,29UM,14/11/2018,1163381,437.50,S & B CAR & VAN HIRE LTD,                         ,LEISURE & OPEN SPACES,Other Vehicle Expenses,Cultural and Related Services
Swale Borough Council,29UM,14/11/2018,1163600,2000.00,REDACTED PERSONAL INFORMATION,                         ,HOUSING SERVICES,Housing Renovation Grants,Not used in this Structure
Swale Borough Council,29UM,14/11/2018,1163555,1790.82,SCOTTISH WATER BUSINESS STREAM LTD,SC294924                 ,SERVICE DELIVERY,Water - Metered,Cultural and Related Services
Swale Borough Council,29UM,14/11/2018,1163636,2968.00,SERCO PAISA LTD - (DT),04908482                 ,LEISURE & OPEN SPACES,Contracts,Cultural and Related Services
Swale Borough Council,29UM,14/11/2018,1163477,1000.00,SHEPPEY CRICKET CLUB,                         ,TOURISM & SPORTS DEVELOPMENT,Grants & Subscriptions,Cultural and Related Services
Swale Borough Council,29UM,14/11/2018,1163513,468.78,SIEMENS FINANCIAL SERVICES LIMITED,646166                   ,PROPERTY SERVICES,Coffee Machines - Rental,Corporate & Democratic Core
Swale Borough Council,29UM,14/11/2018,1163445,550.00,SITT. & KEMSLEY LIGHT RAILWAY LTD,                         ,TOURISM & SPORTS DEVELOPMENT,Grants & Subscriptions,Cultural and Related Services
Swale Borough Council,29UM,14/11/2018,1163492,31.16,SODEXO MOTIVATION SOLUTIONS UK LTD,2680629                  ,HUMAN RESOURCES,Fees and Services,Corporate & Democratic Core
Swale Borough Council,29UM,14/11/2018,1163509,477713.35,SPIRIT OF SITTINGBOURNE LLP,OC377168                 ,FINANCIAL SERVICES,STC - Capitalised Fees And Charges,Not used in this Structure
Swale Borough Council,29UM,14/11/2018,1163648,629714.50,SPIRIT OF SITTINGBOURNE LLP,OC377168                 ,FINANCIAL SERVICES,STC - Capitalised Fees And Charges,Not used in this Structure
Swale Borough Council,29UM,14/11/2018,1163514,7000.00,ST MICHAEL'S GARAGE (KENT) LIMITED,                         ,FINANCIAL SERVICES,Payments in Year - Car Loan,Ledger/Suspense Codes
Swale Borough Council,29UM,14/11/2018,1163390,899.82,STM ENVIRONMENTAL CONSULTANTS LTD,4575523                  ,MKS ENVIRONMENTAL SERVICES,Computer Equipment & Materials,Internal Trading Cost Centres
Swale Borough Council,29UM,14/11/2018,1163368,1000.00,SWALE COMMUNITY & VOLUNTARY SERVICES,277523                   ,ECONOMY & COMMUNITIES,Grants & Subscriptions,Central Services to the Public
Swale Borough Council,29UM,14/11/2018,1163417,1558.64,THE ALEXANDER CENTRE TRUST LIMITED,07281634                 ,COMMISSIONING & CUSTOMER CONTACT,Rent,Internal Trading Cost Centres
Swale Borough Council,29UM,14/11/2018,1163578,306.72,THE FAVERSHAM SOCIETY,250945                   ,TOURISM & SPORTS DEVELOPMENT,Telephone,Cultural and Related Services
Swale Borough Council,29UM,14/11/2018,1163584,500.00,THE FAVERSHAM SOCIETY,250945                   ,ECONOMY & COMMUNITIES,Grants & Subscriptions,Central Services to the Public
Swale Borough Council,29UM,14/11/2018,1163502,1188.00,THE OYSTER PARTNERSHIP,05020374                 ,PLANNING SERVICES,Agency/Contract Staff,Planning and Development Services
Swale Borough Council,29UM,14/11/2018,1163526,285.63,V P BASTION,                         ,PROPERTY SERVICES,Non-Planned Building Maintenance,Corporate & Democratic Core
Swale Borough Council,29UM,14/11/2018,1163295,393.34,WHISTL UK LIMITED,04417047                 ,REVENUE SERVICES,Postage,Central Services to the Public
Swale Borough Council,29UM,14/11/2018,1163295,196.66,WHISTL UK LIMITED,04417047                 ,REVENUE SERVICES,Postage,Housing
Swale Borough Council,29UM,14/11/2018,1163295,7.48,WHISTL UK LIMITED,04417047                 ,CAR PARKS,Postage,Internal Trading Cost Centres
Swale Borough Council,29UM,14/11/2018,1163295,115.10,WHISTL UK LIMITED,04417047                 ,PROPERTY SERVICES,Postage,Holding Codes
Swale Borough Council,29UM,14/11/2018,1163295,516.47,WHISTL UK LIMITED,04417047                 ,DEMOCRATIC & ELECTORAL SERVICES,Postage,Central Services to the Public
Swale Borough Council,29UM,14/11/2018,1163425,516.62,WHISTL UK LIMITED,04417047                 ,REVENUE SERVICES,Postage,Central Services to the Public
Swale Borough Council,29UM,14/11/2018,1163425,258.31,WHISTL UK LIMITED,04417047                 ,REVENUE SERVICES,Postage,Housing
Swale Borough Council,29UM,14/11/2018,1163425,37.22,WHISTL UK LIMITED,04417047                 ,CAR PARKS,Postage,Internal Trading Cost Centres
Swale Borough Council,29UM,14/11/2018,1163425,98.88,WHISTL UK LIMITED,04417047                 ,PROPERTY SERVICES,Postage,Holding Codes
Swale Borough Council,29UM,14/11/2018,1163425,195.18,WHISTL UK LIMITED,04417047                 ,DEMOCRATIC & ELECTORAL SERVICES,Postage,Central Services to the Public
Swale Borough Council,29UM,14/11/2018,1163523,516.61,WICKSTEED LEISURE LTD,00603152                 ,LEISURE & OPEN SPACES,Equipment Purchase,Cultural and Related Services
Swale Borough Council,29UM,14/11/2018,1163596,6885.36,WILLOW TREE HOME SOLUTIONS LTD,                         ,HOUSING SERVICES,Housing Renovation Grants,Not used in this Structure
Swale Borough Council,29UM,21/11/2018,1163670,1409.84,ARC4 LIMITED,6205180                  ,PLANNING SERVICES,Fees and Services,Planning and Development Services
Swale Borough Council,29UM,21/11/2018,1163342,1851.63,BLENWOOD LTD,4383277                  ,LEISURE & OPEN SPACES,Maintenance - Grounds Contract,Cultural and Related Services
Swale Borough Council,29UM,21/11/2018,1163344,102846.35,BLENWOOD LTD,4383277                  ,LEISURE & OPEN SPACES,Grounds Maint Suspense,Cultural and Related Services
Swale Borough Council,29UM,21/11/2018,1163550,341.62,BLENWOOD LTD,4383277                  ,SERVICE DELIVERY,Private Contractors - CIS,Highway and Transport Services
Swale Borough Council,29UM,21/11/2018,1163552,798.11,BLENWOOD LTD,4383277                  ,LEISURE & OPEN SPACES,Maintenance - Grounds,Cultural and Related Services
Swale Borough Council,29UM,21/11/2018,1163717,1279.35,BLENWOOD LTD,4383277                  ,LEISURE & OPEN SPACES,Maintenance - Grounds,Environmental and Regulatory Services
Swale Borough Council,29UM,21/11/2018,1163699,12255.00,BLOOM PROCUREMENT SERVICES LTD,08045123                 ,PLANNING SERVICES,Fees and Services,Planning and Development Services
Swale Borough Council,29UM,21/11/2018,1163745,800.00,CHILDREN AND FAMILIES LTD,                         ,TOURISM & SPORTS DEVELOPMENT,Grants & Subscriptions,Cultural and Related Services
Swale Borough Council,29UM,21/11/2018,1163386,386.90,CONTRACT SECURITY SERVICES,2461362                  ,EXCHEQUER,Cash Security,Internal Trading Cost Centres
Swale Borough Council,29UM,21/11/2018,1163386,3541.54,CONTRACT SECURITY SERVICES,2461362                  ,CAR PARKS,Cash Security,Highway and Transport Services
Swale Borough Council,29UM,21/11/2018,1163781,1135.00,REDACTED PERSONAL INFORMATION,                         ,HOUSING SERVICES,Housing Renovation Grants,Not used in this Structure
Swale Borough Council,29UM,21/11/2018,1163779,6241.84,DAYTRAD LIMITED,7654373                  ,HOUSING SERVICES,Housing Renovation Grants,Not used in this Structure
Swale Borough Council,29UM,21/11/2018,1163780,6215.30,DAYTRAD LIMITED,7654373                  ,HOUSING SERVICES,Housing Renovation Grants,Not used in this Structure
Swale Borough Council,29UM,21/11/2018,1163774,5400.00,DOLPHIN STAIRLIFTS (KENT),04181846                 ,HOUSING SERVICES,Housing Renovation Grants,Not used in this Structure
Swale Borough Council,29UM,21/11/2018,1163744,4652.40,FAV. COMM. CHRISTMAS LIGHTS COMM.,                         ,TOURISM & SPORTS DEVELOPMENT,Grants & Subscriptions,Cultural and Related Services
Swale Borough Council,29UM,21/11/2018,1163674,1000.00,FAVERSHAM HOP FESTIVAL,                         ,TOURISM & SPORTS DEVELOPMENT,Grants & Subscriptions,Cultural and Related Services
Swale Borough Council,29UM,21/11/2018,1163668,250.00,FAVERSHAM TRADERS ASSOCIATION,                         ,TOURISM & SPORTS DEVELOPMENT,Grants & Subscriptions,Cultural and Related Services
Swale Borough Council,29UM,21/11/2018,1163667,1000.00,FAVERSHAM UMBRELLA,                         ,TOURISM & SPORTS DEVELOPMENT,Grants & Subscriptions,Cultural and Related Services
Swale Borough Council,29UM,21/11/2018,1163696,475.00,GATES RAILINGS LTD,10805179                 ,TOURISM & SPORTS DEVELOPMENT,Buildings Maintenance,Cultural and Related Services
Swale Borough Council,29UM,21/11/2018,1163742,476.31,HARTLIP VILLAGE HALL,                         ,TOURISM & SPORTS DEVELOPMENT,Grants & Subscriptions,Cultural and Related Services
Swale Borough Council,29UM,21/11/2018,1163573,278.30,HENDEN PEST CONTROL,                         ,LEISURE & OPEN SPACES,Maintenance - Grounds,Cultural and Related Services
Swale Borough Council,29UM,21/11/2018,1163775,5821.25,HIGHER ELEVATION LTD,4078005                  ,HOUSING SERVICES,Housing Renovation Grants,Not used in this Structure
Swale Borough Council,29UM,21/11/2018,1163777,2217.70,HUBBARD & HOUGHTON CONSTRUCTION LTD,                         ,HOUSING SERVICES,Housing Renovation Grants,Not used in this Structure
Swale Borough Council,29UM,21/11/2018,1163778,350.30,HUBBARD & HOUGHTON CONSTRUCTION LTD,                         ,HOUSING SERVICES,Housing Renovation Grants,Not used in this Structure
Swale Borough Council,29UM,21/11/2018,1163651,970.00,HYDRO DESCALING LTD,1304128                  ,SERVICE DELIVERY,Private Contractors - CIS,Environmental and Regulatory Services
Swale Borough Council,29UM,21/11/2018,1163652,970.00,HYDRO DESCALING LTD,1304128                  ,SERVICE DELIVERY,Private Contractors - CIS,Environmental and Regulatory Services
Swale Borough Council,29UM,21/11/2018,1163620,2100.00,INFORM COMMUNICATIONS LTD,2644647                  ,REVENUE SERVICES,Fees and Services,Housing
Swale Borough Council,29UM,21/11/2018,1163666,2000.00,IWADE PARISH COUNCIL,                         ,TOURISM & SPORTS DEVELOPMENT,Grants & Subscriptions,Cultural and Related Services
Swale Borough Council,29UM,21/11/2018,1163422,1175.00,J N CLEARANCE,                         ,CONTRACT & PROCUREMENT,Private Contractors,Environmental and Regulatory Services
Swale Borough Council,29UM,21/11/2018,1163422,1435.00,J N CLEARANCE,                         ,CONTRACT & PROCUREMENT,"Clearance Of Waste,Fly Tipping",Environmental and Regulatory Services
Swale Borough Council,29UM,21/11/2018,1163423,300.00,J N CLEARANCE,                         ,CONTRACT & PROCUREMENT,"Clearance Of Waste,Fly Tipping",Environmental and Regulatory Services
Swale Borough Council,29UM,21/11/2018,1163503,1000.00,REDACTED PERSONAL INFORMATION,                         ,HOUSING SERVICES,Rent Deposit Scheme - Landlord Payments,Housing
Swale Borough Council,29UM,21/11/2018,1163592,2481.85,KENT COUNTY COUNCIL (KCS),                         ,PROPERTY SERVICES,Gas,Corporate & Democratic Core
Swale Borough Council,29UM,21/11/2018,1163746,820.00,LAKEVIEW VILLAGE HALL TRUST,                         ,TOURISM & SPORTS DEVELOPMENT,Grants & Subscriptions,Cultural and Related Services
Swale Borough Council,29UM,21/11/2018,1163638,1250.00,LEMAR LIMITED,04350292                 ,SERVICE DELIVERY,Private Contractors - CIS,Environmental and Regulatory Services
Swale Borough Council,29UM,21/11/2018,1163638,1075.00,LEMAR LIMITED,04350292                 ,SERVICE DELIVERY,Private Contractors - CIS,Environmental and Regulatory Services
Swale Borough Council,29UM,21/11/2018,1163639,300.00,LEMAR LIMITED,04350292                 ,LEISURE & OPEN SPACES,Maintenance - Grounds,Cultural and Related Services
Swale Borough Council,29UM,21/11/2018,1163639,295.00,LEMAR LIMITED,04350292                 ,LEISURE & OPEN SPACES,Maintenance - Grounds,Cultural and Related Services
Swale Borough Council,29UM,21/11/2018,1163413,308.99,LEXISNEXIS UK,2746621                  ,MKS LEGAL SERVICES,"Books, Journals & e - resources",Internal Trading Cost Centres
Swale Borough Council,29UM,21/11/2018,1163413,297.99,LEXISNEXIS UK,2746621                  ,MKS LEGAL SERVICES,"Books, Journals & e - resources",Internal Trading Cost Centres
Swale Borough Council,29UM,21/11/2018,1163414,443.49,LEXISNEXIS UK,2746621                  ,MKS LEGAL SERVICES,"Books, Journals & e - resources",Internal Trading Cost Centres
Swale Borough Council,29UM,21/11/2018,1163414,463.48,LEXISNEXIS UK,2746621                  ,MKS LEGAL SERVICES,"Books, Journals & e - resources",Internal Trading Cost Centres
Swale Borough Council,29UM,21/11/2018,1163645,1351.44,LLOYDS BANK - (DT),                         ,FINANCIAL SERVICES,Bank Charges,Corporate & Democratic Core
Swale Borough Council,29UM,21/11/2018,1163593,2596.38,MAIDSTONE BOROUGH COUNCIL,                         ,CONTRACT & PROCUREMENT,Variations To Contract,Environmental and Regulatory Services
Swale Borough Council,29UM,21/11/2018,1163593,1355.36,MAIDSTONE BOROUGH COUNCIL,                         ,CONTRACT & PROCUREMENT,Variations To Contract,Environmental and Regulatory Services
Swale Borough Council,29UM,21/11/2018,1163593,3162.55,MAIDSTONE BOROUGH COUNCIL,                         ,CONTRACT & PROCUREMENT,"Clearance Of Waste,Fly Tipping",Environmental and Regulatory Services
Swale Borough Council,29UM,21/11/2018,1163594,175.00,MAIDSTONE BOROUGH COUNCIL,                         ,CONTRACT & PROCUREMENT,Equipment Purchase,Environmental and Regulatory Services
Swale Borough Council,29UM,21/11/2018,1163594,2247.07,MAIDSTONE BOROUGH COUNCIL,                         ,CONTRACT & PROCUREMENT,"Clearance Of Waste,Fly Tipping",Environmental and Regulatory Services
Swale Borough Council,29UM,21/11/2018,1163594,406.43,MAIDSTONE BOROUGH COUNCIL,                         ,CONTRACT & PROCUREMENT,"Clearance Of Sites,Tyres Etc",Environmental and Regulatory Services
Swale Borough Council,29UM,21/11/2018,1163594,671.93,MAIDSTONE BOROUGH COUNCIL,                         ,CONTRACT & PROCUREMENT,Variations To Contract,Environmental and Regulatory Services
Swale Borough Council,29UM,21/11/2018,1163594,541.20,MAIDSTONE BOROUGH COUNCIL,                         ,CONTRACT & PROCUREMENT,Clinical Waste,Environmental and Regulatory Services
Swale Borough Council,29UM,21/11/2018,1163594,19587.48,MAIDSTONE BOROUGH COUNCIL,                         ,CONTRACT & PROCUREMENT,Equipment Purchase,Environmental and Regulatory Services
Swale Borough Council,29UM,21/11/2018,1163801,837086.00,MAIDSTONE BOROUGH COUNCIL - DT,                         ,FINANCIAL SERVICES,Tariff to Gvt,Taxation and Non-Specific Grant Income
Swale Borough Council,29UM,21/11/2018,1163325,10906.40,MATRIX SCM LTD,2227962                  ,HUMAN RESOURCES,Agency/Contract Staff,Internal Trading Cost Centres
Swale Borough Council,29UM,21/11/2018,1163512,10264.02,MATRIX SCM LTD,2227962                  ,HUMAN RESOURCES,Agency/Contract Staff,Internal Trading Cost Centres
Swale Borough Council,29UM,21/11/2018,1163646,9853.81,MATRIX SCM LTD,2227962                  ,HUMAN RESOURCES,Agency/Contract Staff,Internal Trading Cost Centres
Swale Borough Council,29UM,21/11/2018,1163590,1830.00,MAYLOW CONSTRUCTION LTD,                         ,LEISURE & OPEN SPACES,Maintenance - Grounds,Cultural and Related Services
Swale Borough Council,29UM,21/11/2018,1163591,13892.00,MAYLOW CONSTRUCTION LTD,                         ,LEISURE & OPEN SPACES,Capital Constuction - CIS Works,Not used in this Structure
Swale Borough Council,29UM,21/11/2018,1163702,2047.00,MAYLOW CONSTRUCTION LTD,                         ,LEISURE & OPEN SPACES,Maintenance - Grounds,Cultural and Related Services
Swale Borough Council,29UM,21/11/2018,1163734,286.22,NPOWER,                         ,LEISURE & OPEN SPACES,Electricity,Cultural and Related Services
Swale Borough Council,29UM,21/11/2018,1163675,3000.00,QUEENBOROUGH TOWN COUNCIL,                         ,TOURISM & SPORTS DEVELOPMENT,Grants & Subscriptions,Cultural and Related Services
Swale Borough Council,29UM,21/11/2018,1163803,109.95,RBS PURCHASING CARD (DT) - AMAZON,,CHIEF EXECUTIVE,Equipment Purchase,Corporate & Democratic Core
Swale Borough Council,29UM,21/11/2018,1163804,7.60,RBS PURCHASING CARD (DT) - WHITEFRIARS CAR PARK,,TOURISM & SPORTS DEVELOPMENT,Staff Travel-Buses & Trains,Internal Trading Cost Centres
Swale Borough Council,29UM,21/11/2018,1163805,36.95,RBS PURCHASING CARD (DT) - AMAZON,,PROPERTY SERVICES,Equipment Purchase,Corporate & Democratic Core
Swale Borough Council,29UM,21/11/2018,1163806,288.00,RBS PURCHASING CARD (DT) - EUROSTAR INTERNATIONAL LTD,,DEMOCRATIC & ELECTORAL SERVICES,Hospitality Allowance - Mayor,Corporate & Democratic Core
Swale Borough Council,29UM,21/11/2018,1163806,262.81,RBS PURCHASING CARD (DT) - PRICELINE GROUP,,DEMOCRATIC & ELECTORAL SERVICES,Hospitality Allowance - Mayor,Corporate & Democratic Core
Swale Borough Council,29UM,21/11/2018,1163806,21.20,RBS PURCHASING CARD (DT) - SOUTHEASTERN ,,DEMOCRATIC & ELECTORAL SERVICES,Hospitality Allowance - Mayor,Corporate & Democratic Core
Swale Borough Council,29UM,21/11/2018,1163806,50.00,RBS PURCHASING CARD (DT) - FLOWERS BY BEATRICE,,DEMOCRATIC & ELECTORAL SERVICES,Hospitality Allowance - Mayor,Corporate & Democratic Core
Swale Borough Council,29UM,21/11/2018,1163807,40.00,RBS PURCHASING CARD (DT) - WWW.ICO.GOV.UK,,CORPORATE SERVICES,Members - Outside Bodies Allowance,Corporate & Democratic Core
Swale Borough Council,29UM,21/11/2018,1163807,40.00,RBS PURCHASING CARD (DT) - WWW.ICO.GOV.UK,,CORPORATE SERVICES,Members - Outside Bodies Allowance,Corporate & Democratic Core
Swale Borough Council,29UM,21/11/2018,1163807,40.00,RBS PURCHASING CARD (DT) - WWW.ICO.GOV.UK,,CORPORATE SERVICES,Members - Outside Bodies Allowance,Corporate & Democratic Core
Swale Borough Council,29UM,21/11/2018,1163807,40.00,RBS PURCHASING CARD (DT) - WWW.ICO.GOV.UK,,CORPORATE SERVICES,Members - Outside Bodies Allowance,Corporate & Democratic Core
Swale Borough Council,29UM,21/11/2018,1163807,54.60,RBS PURCHASING CARD (DT) - SOUTHEASTERN ,                         ,TRANSFORMATION PROJECT,Staff Travel-Buses & Trains,Corporate & Democratic Core
Swale Borough Council,29UM,21/11/2018,1163807,37.48,RBS PURCHASING CARD (DT) - AMAZON,                         ,ENVIRONMENTAL RESPONSE TEAM,Equipment Purchase,Internal Trading Cost Centres
Swale Borough Council,29UM,21/11/2018,1163807,31.66,RBS PURCHASING CARD (DT) - AMAZON,                         ,COMMUNICATIONS,Stationery,Internal Trading Cost Centres
Swale Borough Council,29UM,21/11/2018,1163807,4.49,RBS PURCHASING CARD (DT) - AMAZON,                         ,COMMUNICATIONS,Stationery,Internal Trading Cost Centres
Swale Borough Council,29UM,21/11/2018,1163807,107.49,RBS PURCHASING CARD (DT) - SGS ENGINEERING,                         ,LEISURE & OPEN SPACES,Equipment Purchase,Cultural and Related Services
Swale Borough Council,29UM,21/11/2018,1163808,29.99,RBS PURCHASING CARD (DT) - AMAZON,,MKS LEGAL SERVICES,Stationery,Internal Trading Cost Centres
Swale Borough Council,29UM,21/11/2018,1163808,-79.99,RBS PURCHASING CARD (DT) - MICROSOFT OFFICE,,CONTRACT & PROCUREMENT,Equipment Purchase,Internal Trading Cost Centres
Swale Borough Council,29UM,21/11/2018,1163809,467.03,RBS PURCHASING CARD (DT) - ARGOS,                         ,HOUSING SERVICES,General Maintenance,Housing
Swale Borough Council,29UM,21/11/2018,1163810,1.00,RBS PURCHASING CARD (DT) - CHARGE YOUR CAR LTD,                         ,PROPERTY SERVICES,Electric Running Costs,Environmental and Regulatory Services
Swale Borough Council,29UM,21/11/2018,1163810,90.00,RBS PURCHASING CARD (DT) - POUNDLAND,                         ,CHIEF EXECUTIVE,Catering Provisions,Corporate & Democratic Core
Swale Borough Council,29UM,21/11/2018,1163810,168.90,RBS PURCHASING CARD (DT) - ALDI,                         ,CHIEF EXECUTIVE,Catering Provisions,Corporate & Democratic Core
Swale Borough Council,29UM,21/11/2018,1163810,10.55,RBS PURCHASING CARD (DT) - ALDI,                         ,CHIEF EXECUTIVE,Catering Provisions,Corporate & Democratic Core
Swale Borough Council,29UM,21/11/2018,1163810,25.00,RBS PURCHASING CARD (DT) - GREGGS,                         ,CHIEF EXECUTIVE,Catering Provisions,Corporate & Democratic Core
Swale Borough Council,29UM,21/11/2018,1163810,18.42,RBS PURCHASING CARD (DT) - MCDONALDS,                         ,CHIEF EXECUTIVE,Catering Provisions,Corporate & Democratic Core
Swale Borough Council,29UM,21/11/2018,1163810,16.68,RBS PURCHASING CARD (DT) - CO OP,                         ,CHIEF EXECUTIVE,Catering Provisions,Corporate & Democratic Core
Swale Borough Council,29UM,21/11/2018,1163810,173.25,RBS PURCHASING CARD (DT) - DIGITALDAFF,                         ,CHIEF EXECUTIVE,Grants & Subscriptions,Internal Trading Cost Centres
Swale Borough Council,29UM,21/11/2018,1163811,628.00,RBS PURCHASING CARD (DT) - HMCTS,                         ,REVENUE SERVICES,Fees and Services,Central Services to the Public
Swale Borough Council,29UM,21/11/2018,1163811,8.00,RBS PURCHASING CARD (DT) - HMCTS,                         ,REVENUE SERVICES,Fees and Services,Central Services to the Public
Swale Borough Council,29UM,21/11/2018,1163812,14.00,RBS PURCHASING CARD (DT) - BAILEYS,                         ,MKS LEGAL SERVICES,Catering Provisions,Internal Trading Cost Centres
Swale Borough Council,29UM,21/11/2018,1163812,480.00,RBS PURCHASING CARD (DT) - CENTRAL LAW TRAINING LTD,,MKS LEGAL SERVICES,Training - Courses,Internal Trading Cost Centres
Swale Borough Council,29UM,21/11/2018,1163812,43.50,RBS PURCHASING CARD (DT) - BATH PUBLISHING,                         ,MKS LEGAL SERVICES,"Books, Journals & e - resources",Internal Trading Cost Centres
Swale Borough Council,29UM,21/11/2018,1163812,121.50,RBS PURCHASING CARD (DT) - CILEX,,HUMAN RESOURCES,Training - Courses,Corporate & Democratic Core
Swale Borough Council,29UM,21/11/2018,1163813,960.00,RBS PURCHASING CARD (DT) - CENTRAL LAW TRAINING LTD,,MKS LEGAL SERVICES,Training - Courses,Internal Trading Cost Centres
Swale Borough Council,29UM,21/11/2018,1163814,16.96,RBS PURCHASING CARD (DT) - LTR SUPPLIES,,LEISURE & OPEN SPACES,Equipment Purchase,Cultural and Related Services
Swale Borough Council,29UM,21/11/2018,1163443,842.86,RIDLEY RECYCLING LIMITED,5921293                  ,CONTRACT & PROCUREMENT,Waste and Recycling Promotion / Comm's Projects,Environmental and Regulatory Services
Swale Borough Council,29UM,21/11/2018,1163534,486.67,ROYAL MAIL GROUP LTD,4138203                  ,DEMOCRATIC & ELECTORAL SERVICES,Postage,Central Services to the Public
Swale Borough Council,29UM,21/11/2018,1163676,400.00,S'BOURNE CHRISTMAS LIGHTS ASSOC,                         ,ECONOMY & COMMUNITIES,Grants & Subscriptions,Central Services to the Public
Swale Borough Council,29UM,21/11/2018,1163677,1550.00,S'BOURNE CHRISTMAS LIGHTS ASSOC,                         ,ECONOMY & COMMUNITIES,Grants & Subscriptions,Central Services to the Public
Swale Borough Council,29UM,21/11/2018,1163678,5000.00,S'BOURNE CHRISTMAS LIGHTS ASSOC,                         ,TOURISM & SPORTS DEVELOPMENT,Grants & Subscriptions,Cultural and Related Services
Swale Borough Council,29UM,21/11/2018,1163557,1616.64,SCOTTISH WATER BUSINESS STREAM LTD,SC294924                 ,CONTRACT & PROCUREMENT,Water - Metered,Environmental and Regulatory Services
Swale Borough Council,29UM,21/11/2018,1163558,645.34,SCOTTISH WATER BUSINESS STREAM LTD,SC294924                 ,CONTRACT & PROCUREMENT,Water - Metered,Environmental and Regulatory Services
Swale Borough Council,29UM,21/11/2018,1163647,851.50,SHAKESPEARE MARTINEAU LLP,OC319029                 ,LEISURE & OPEN SPACES,Legal Fees,Cultural and Related Services
Swale Borough Council,29UM,21/11/2018,1163660,4425.38,SHARP BUSINESS SYSTEMS UK,2136901                  ,MKS ICT,Equipment Rental,Holding Codes
Swale Borough Council,29UM,21/11/2018,1163688,3161.60,SOCOTEC UK LIMITED,02880501                 ,MKS ENVIRONMENTAL SERVICES,Equipment Maintenance,Environmental and Regulatory Services
Swale Borough Council,29UM,21/11/2018,1163776,5968.16,SOUTH EAST BUILDING CO LTD,1786838                  ,HOUSING SERVICES,Housing Renovation Grants,Not used in this Structure
Swale Borough Council,29UM,21/11/2018,1163606,357.85,SOUTHERN COMMUNICATIONS LTD,1328040                  ,MKS ICT,Telephone,Corporate & Democratic Core
Swale Borough Council,29UM,21/11/2018,1163741,70000.00,THE DOLPHIN SAILING BARGE MUSEUM TRUST,                         ,DIRECTOR OF REGENERATION,Capital Grants,Not used in this Structure
Swale Borough Council,29UM,21/11/2018,1163747,581.98,THE VINEYARD,                         ,TOURISM & SPORTS DEVELOPMENT,Grants & Subscriptions,Cultural and Related Services
Swale Borough Council,29UM,21/11/2018,1163607,16080.95,THOMSON REUTERS,1679046                  ,MKS LEGAL SERVICES,"Books, Journals & e - resources",Internal Trading Cost Centres
Swale Borough Council,29UM,21/11/2018,1163608,-2982.53,THOMSON REUTERS,1679046                  ,MKS LEGAL SERVICES,"Books, Journals & e - resources",Internal Trading Cost Centres
Swale Borough Council,29UM,21/11/2018,1163609,2000.00,THOMSON REUTERS,1679046                  ,MKS LEGAL SERVICES,"Books, Journals & e - resources",Internal Trading Cost Centres
Swale Borough Council,29UM,21/11/2018,1163610,1300.00,THOMSON REUTERS,1679046                  ,MKS LEGAL SERVICES,"Books, Journals & e - resources",Internal Trading Cost Centres
Swale Borough Council,29UM,21/11/2018,1163506,9847.25,WASTE CONSULTING LLP,OC355629                 ,CONTRACT & PROCUREMENT,Variations To Contract,Environmental and Regulatory Services
Swale Borough Council,29UM,21/11/2018,1163682,600.00,WEALD WOODSCAPES LTD,8028446                  ,LEISURE & OPEN SPACES,Maintenance - Grounds,Cultural and Related Services
Swale Borough Council,29UM,21/11/2018,1163613,1052.08,WHISTL UK LIMITED,04417047                 ,REVENUE SERVICES,Postage,Central Services to the Public
Swale Borough Council,29UM,21/11/2018,1163613,526.03,WHISTL UK LIMITED,04417047                 ,REVENUE SERVICES,Postage,Housing
Swale Borough Council,29UM,21/11/2018,1163613,11.42,WHISTL UK LIMITED,04417047                 ,CAR PARKS,Postage,Internal Trading Cost Centres
Swale Borough Council,29UM,21/11/2018,1163613,253.41,WHISTL UK LIMITED,04417047                 ,PROPERTY SERVICES,Postage,Holding Codes
Swale Borough Council,29UM,21/11/2018,1163613,253.98,WHISTL UK LIMITED,04417047                 ,DEMOCRATIC & ELECTORAL SERVICES,Postage,Central Services to the Public
Swale Borough Council,29UM,21/11/2018,1163707,615.98,WRG PITNEY & CO LTD - BALLOONATIC,10812484                 ,TOURISM & SPORTS DEVELOPMENT,Grants & Subscriptions,Cultural and Related Services
Swale Borough Council,29UM,21/11/2018,1163722,6583.00,WYNDEHAM PETERBOROUGH LTD,2261988                  ,COMMUNICATIONS,Developing & Printing,Corporate & Democratic Core
Swale Borough Council,29UM,28/11/2018,1163540,429.18,ACORN MAINTENANCE SERVICES,3546898                  ,HOUSING SERVICES,Staying Put small repairs (contractors),Housing
Swale Borough Council,29UM,28/11/2018,1163706,264.00,ACORN MAINTENANCE SERVICES,3546898                  ,HOUSING SERVICES,Staying Put small repairs (contractors),Housing
Swale Borough Council,29UM,28/11/2018,1163687,143.56,ALLSTAR BUSINESS SOLUTIONS LTD - (DT),1073098                  ,SERVICE DELIVERY,Petrol/Derv & Oil,Cultural and Related Services
Swale Borough Council,29UM,28/11/2018,1163687,460.94,ALLSTAR BUSINESS SOLUTIONS LTD - (DT),1073098                  ,ENVIRONMENTAL RESPONSE TEAM,Fuel For Contract Vehicles,Internal Trading Cost Centres
Swale Borough Council,29UM,28/11/2018,1163687,70.59,ALLSTAR BUSINESS SOLUTIONS LTD - (DT),1073098                  ,LEISURE & OPEN SPACES,Fuel For Contract Vehicles,Cultural and Related Services
Swale Borough Council,29UM,28/11/2018,1163687,122.54,ALLSTAR BUSINESS SOLUTIONS LTD - (DT),1073098                  ,ENVIRONMENTAL RESPONSE TEAM,Fuel For Contract Vehicles,Environmental and Regulatory Services
Swale Borough Council,29UM,28/11/2018,1163687,81.11,ALLSTAR BUSINESS SOLUTIONS LTD - (DT),1073098                  ,HOUSING SERVICES,Fuel For Contract Vehicles,Housing
Swale Borough Council,29UM,28/11/2018,1163750,2072.24,BLENWOOD LTD,4383277                  ,LEISURE & OPEN SPACES,Maintenance - Grounds,Cultural and Related Services
Swale Borough Council,29UM,28/11/2018,1163751,1950.00,BLENWOOD LTD,4383277                  ,ENVIRONMENTAL RESPONSE TEAM,Equipment Purchase,Planning and Development Services
Swale Borough Council,29UM,28/11/2018,1163790,800.00,BORDEN FETE COMMITTEE,                         ,TOURISM & SPORTS DEVELOPMENT,Grants & Subscriptions,Cultural and Related Services
Swale Borough Council,29UM,28/11/2018,1163792,6500.00,CUSHMAN & WAKEFIELD DEBENHAM T L LTD,2757768                  ,PROPERTY SERVICES,Fees and Services,Trading Undertaking
Swale Borough Council,29UM,28/11/2018,1163916,5650.00,DOLPHIN STAIRLIFTS (KENT),04181846                 ,HOUSING SERVICES,Housing Renovation Grants,Not used in this Structure
Swale Borough Council,29UM,28/11/2018,1163917,5670.00,DOLPHIN STAIRLIFTS (KENT),04181846                 ,HOUSING SERVICES,Housing Renovation Grants,Not used in this Structure
Swale Borough Council,29UM,28/11/2018,1163766,1000.00,EASTCHURCH PARISH COUNCIL,                         ,TOURISM & SPORTS DEVELOPMENT,Grants & Subscriptions,Cultural and Related Services
Swale Borough Council,29UM,28/11/2018,1163768,500.00,FAV. COMM. CHRISTMAS LIGHTS COMM.,                         ,ECONOMY & COMMUNITIES,Grants & Subscriptions,Central Services to the Public
Swale Borough Council,29UM,28/11/2018,1163765,500.00,FAVERSHAM IN BLOOM,                         ,ECONOMY & COMMUNITIES,Grants & Subscriptions,Central Services to the Public
Swale Borough Council,29UM,28/11/2018,1163905,927.50,FAVERSHAM STRIKEFORCE,                         ,TOURISM & SPORTS DEVELOPMENT,Grants & Subscriptions,Cultural and Related Services
Swale Borough Council,29UM,28/11/2018,1163737,867.75,FLU XPRESS LTD,7425649                  ,CHIEF EXECUTIVE,Fees and Services,Corporate & Democratic Core
Swale Borough Council,29UM,28/11/2018,1163862,350.00,HIGHER ELEVATION LTD,4078005                  ,HOUSING SERVICES,Staying Put small repairs (contractors),Housing
Swale Borough Council,29UM,28/11/2018,1163863,350.00,HIGHER ELEVATION LTD,4078005                  ,HOUSING SERVICES,Staying Put small repairs (contractors),Housing
Swale Borough Council,29UM,28/11/2018,1163921,2725.00,HIGHER ELEVATION LTD,4078005                  ,HOUSING SERVICES,Housing Renovation Grants,Not used in this Structure
Swale Borough Council,29UM,28/11/2018,1163919,904.93,HUBBARD & HOUGHTON CONSTRUCTION LTD,                         ,HOUSING SERVICES,Housing Renovation Grants,Not used in this Structure
Swale Borough Council,29UM,28/11/2018,1163920,4385.20,HUBBARD & HOUGHTON CONSTRUCTION LTD,                         ,HOUSING SERVICES,Housing Renovation Grants,Not used in this Structure
Swale Borough Council,29UM,28/11/2018,1163835,2775.00,INTEGRA ASSOCIATES LIMITED,03054901                 ,FINANCIAL SERVICES,Capitalised Fees And Charges,Not used in this Structure
Swale Borough Council,29UM,28/11/2018,1163918,841.50,J & D SYSTEMS,                         ,HOUSING SERVICES,Housing Renovation Grants,Not used in this Structure
Swale Borough Council,29UM,28/11/2018,1163848,4076.00,KENT COUNTY COUNCIL,                         ,FINANCIAL SERVICES,Fees and Services,Internal Trading Cost Centres
Swale Borough Council,29UM,28/11/2018,1163857,4206.34,KENT COUNTY COUNCIL (KCS),                         ,PROPERTY SERVICES,Electricity,Corporate & Democratic Core
Swale Borough Council,29UM,28/11/2018,1163760,3700.00,KENT SURREY AND SUSSEX CRC LTD,08802556                 ,COMMUNITY SAFETY,Grants & Subscriptions,Planning and Development Services
Swale Borough Council,29UM,28/11/2018,1163767,400.00,LADYBIRD CHILDREN'S CENTRE,                         ,ECONOMY & COMMUNITIES,Grants & Subscriptions,Central Services to the Public
Swale Borough Council,29UM,28/11/2018,1163708,2435.00,REDACTED PERSONAL INFORMATION,                         ,CONTRACT & PROCUREMENT,Equipment Purchase,Environmental and Regulatory Services
Swale Borough Council,29UM,28/11/2018,1163709,250.00,REDACTED PERSONAL INFORMATION,                         ,CONTRACT & PROCUREMENT,"Clearance Of Waste,Fly Tipping",Environmental and Regulatory Services
Swale Borough Council,29UM,28/11/2018,1163454,1884.20,MAIDSTONE BOROUGH COUNCIL,                         ,COMMISSIONING & CUSTOMER CONTACT,Computer Equipment & Materials,Internal Trading Cost Centres
Swale Borough Council,29UM,28/11/2018,1163454,1332.60,MAIDSTONE BOROUGH COUNCIL,                         ,ENVIRONMENTAL RESPONSE TEAM,Computer Equipment & Materials,Internal Trading Cost Centres
Swale Borough Council,29UM,28/11/2018,1163454,2665.33,MAIDSTONE BOROUGH COUNCIL,                         ,LICENCING,Computer Equipment & Materials,Internal Trading Cost Centres
Swale Borough Council,29UM,28/11/2018,1163454,22655.40,MAIDSTONE BOROUGH COUNCIL,                         ,PLANNING SERVICES,Computer Equipment & Materials,Internal Trading Cost Centres
Swale Borough Council,29UM,28/11/2018,1163454,750.00,MAIDSTONE BOROUGH COUNCIL,                         ,MKS ICT,Computer Equipment & Materials,Internal Trading Cost Centres
Swale Borough Council,29UM,28/11/2018,1163454,1984.30,MAIDSTONE BOROUGH COUNCIL,                         ,MKS ICT,Computer Equipment & Materials,Internal Trading Cost Centres
Swale Borough Council,29UM,28/11/2018,1163454,2700.00,MAIDSTONE BOROUGH COUNCIL,                         ,COMMUNICATIONS,Computer Equipment & Materials,Internal Trading Cost Centres
Swale Borough Council,29UM,28/11/2018,1163869,500.00,MEDWAY PUBLIC SERVICES LTD,10041989                 ,COMMUNITY SAFETY,CCTV Monitoring Service,Environmental and Regulatory Services
Swale Borough Council,29UM,28/11/2018,1163859,1578.00,MIDLAND SOFTWARE LTD (DT),1852206                  ,HUMAN RESOURCES,Computer Equipment & Materials,Internal Trading Cost Centres
Swale Borough Council,29UM,28/11/2018,1163903,800.00,MOAT HOMES LTD,                         ,TOURISM & SPORTS DEVELOPMENT,Grants & Subscriptions,Cultural and Related Services
Swale Borough Council,29UM,28/11/2018,1163864,445.00,MORGANA SYSTEMS LTD,1335506                  ,PROPERTY SERVICES,Equipment Maintenance,Internal Trading Cost Centres
Swale Borough Council,29UM,28/11/2018,1163886,2032.13,MPS MARKETING SERVICES LIMITED,6360656                  ,DEMOCRATIC & ELECTORAL SERVICES,Fees and Services,Central Services to the Public
Swale Borough Council,29UM,28/11/2018,1163887,1434.54,MPS MARKETING SERVICES LIMITED,6360656                  ,DEMOCRATIC & ELECTORAL SERVICES,Fees and Services,Central Services to the Public
Swale Borough Council,29UM,28/11/2018,1163829,400.00,REDACTED PERSONAL INFORMATION,                         ,ENVIRONMENTAL RESPONSE TEAM,Legal Fees,Planning and Development Services
Swale Borough Council,29UM,28/11/2018,1163829,80.00,REDACTED PERSONAL INFORMATION,                         ,ENVIRONMENTAL RESPONSE TEAM,Legal Fees,Planning and Development Services
Swale Borough Council,29UM,28/11/2018,1163769,425.00,NEW LEAF SUPPORT LTD,                         ,ECONOMY & COMMUNITIES,Grants & Subscriptions,Central Services to the Public
Swale Borough Council,29UM,28/11/2018,1163726,307.18,NPOWER,                         ,CAR PARKS,Electricity,Highway and Transport Services
Swale Borough Council,29UM,28/11/2018,1163763,800.00,OARE VILLAGE HALL,                         ,ECONOMY & COMMUNITIES,Grants & Subscriptions,Central Services to the Public
Swale Borough Council,29UM,28/11/2018,1163846,1365.00,OBSIDIAN SECURITY LTD,                         ,PROPERTY SERVICES,Buildings Maintenance,Corporate & Democratic Core
Swale Borough Council,29UM,28/11/2018,1163847,2096.00,OBSIDIAN SECURITY LTD,                         ,PROPERTY SERVICES,Buildings Maintenance,Corporate & Democratic Core
Swale Borough Council,29UM,28/11/2018,1163819,13270.00,PHLORUM LTD,04967256                 ,MKS ENVIRONMENTAL SERVICES,Consultancy/Specialist Advice,Environmental and Regulatory Services
Swale Borough Council,29UM,28/11/2018,1163659,727.00,ROSE REMOVALS,7572105                  ,HOUSING SERVICES,Storage Expenses,Housing
Swale Borough Council,29UM,28/11/2018,1163858,895.51,S & J SERVICES,                         ,LEISURE & OPEN SPACES,Maintenance - Grounds,Cultural and Related Services
Swale Borough Council,29UM,28/11/2018,1163748,2500.00,REDACTED PERSONAL INFORMATION,                         ,TOURISM & SPORTS DEVELOPMENT,Fees and Services,Cultural and Related Services
Swale Borough Council,29UM,28/11/2018,1163691,529.34,SCOTTISH WATER BUSINESS STREAM LTD,SC294924                 ,PROPERTY SERVICES,Water - Metered,Corporate & Democratic Core
Swale Borough Council,29UM,28/11/2018,1163691,29.16,SCOTTISH WATER BUSINESS STREAM LTD,SC294924                 ,PROPERTY SERVICES,Water - Metered,Corporate & Democratic Core
Swale Borough Council,29UM,28/11/2018,1163691,852.27,SCOTTISH WATER BUSINESS STREAM LTD,SC294924                 ,PROPERTY SERVICES,Water - Metered,Corporate & Democratic Core
Swale Borough Council,29UM,28/11/2018,1163897,4000.00,SHEERNESS TOWN TEAM,                         ,TOURISM & SPORTS DEVELOPMENT,Grants & Subscriptions,Cultural and Related Services
Swale Borough Council,29UM,28/11/2018,1163789,683.93,SHELDWICH VILLAGE EVENTS MGMT COMPANY,                         ,TOURISM & SPORTS DEVELOPMENT,Grants & Subscriptions,Cultural and Related Services
Swale Borough Council,29UM,28/11/2018,1163754,800.00,SITTINGBOURNE ARTISAN MARKET,                         ,TOURISM & SPORTS DEVELOPMENT,Grants & Subscriptions,Cultural and Related Services
Swale Borough Council,29UM,28/11/2018,1163738,473.95,STOP THE TRAFFIK,                         ,COMMUNITY SAFETY,Fees and Services,Environmental and Regulatory Services
Swale Borough Council,29UM,28/11/2018,1163564,10000.00,SWECO UK LTD,2888385                  ,PLANNING SERVICES,Fees and Services,Planning and Development Services
Swale Borough Council,29UM,28/11/2018,1163679,750.00,THE BARNYARD,                         ,ECONOMY & COMMUNITIES,Communities Fund Expenditure,Ledger/Suspense Codes
Swale Borough Council,29UM,28/11/2018,1163531,1140.00,THE KEY SAFE COMPANY,3294833                  ,HOUSING SERVICES,Staying Put - Materials,Housing
Swale Borough Council,29UM,28/11/2018,1163854,-33.99,UNISON,                         ,HUMAN RESOURCES,Payroll - Unison Deductions Admin Charge,Corporate & Democratic Core
Swale Borough Council,29UM,28/11/2018,1163815,334.46,VANITORIALS LIMITED,3952938                  ,PROPERTY SERVICES,Cleaning Materials,Internal Trading Cost Centres
Swale Borough Council,29UM,28/11/2018,1163749,23.84,VR SANI-CO LTD,3588359                  ,TOURISM & SPORTS DEVELOPMENT,Service Contracts,Cultural and Related Services
Swale Borough Council,29UM,28/11/2018,1163749,12.50,VR SANI-CO LTD,3588359                  ,TOURISM & SPORTS DEVELOPMENT,Service Contracts,Cultural and Related Services
Swale Borough Council,29UM,28/11/2018,1163749,28.17,VR SANI-CO LTD,3588359                  ,TOURISM & SPORTS DEVELOPMENT,Service Contracts,Cultural and Related Services
Swale Borough Council,29UM,28/11/2018,1163749,35.76,VR SANI-CO LTD,3588359                  ,PROPERTY SERVICES,Service Contracts,Cultural and Related Services
Swale Borough Council,29UM,28/11/2018,1163749,5.96,VR SANI-CO LTD,3588359                  ,COMMUNITY SAFETY,Service Contracts,Cultural and Related Services
Swale Borough Council,29UM,28/11/2018,1163749,26.07,VR SANI-CO LTD,3588359                  ,TOURISM & SPORTS DEVELOPMENT,Service Contracts,Cultural and Related Services
Swale Borough Council,29UM,28/11/2018,1163749,26.00,VR SANI-CO LTD,3588359                  ,PROPERTY SERVICES,Service Contracts,Corporate & Democratic Core
Swale Borough Council,29UM,28/11/2018,1163749,214.56,VR SANI-CO LTD,3588359                  ,PROPERTY SERVICES,Service Contracts,Corporate & Democratic Core
Swale Borough Council,29UM,28/11/2018,1163749,50.00,VR SANI-CO LTD,3588359                  ,PROPERTY SERVICES,Service Contracts,Corporate & Democratic Core
Swale Borough Council,29UM,28/11/2018,1163749,14.08,VR SANI-CO LTD,3588359                  ,PROPERTY SERVICES,Service Contracts,Corporate & Democratic Core
Swale Borough Council,29UM,28/11/2018,1163753,425.47,VR SANI-CO LTD,3588359                  ,CONTRACT & PROCUREMENT,Hygiene Service Contracts,Environmental and Regulatory Services
Swale Borough Council,29UM,28/11/2018,1163861,750.00,WEALD WOODSCAPES LTD,8028446                  ,LEISURE & OPEN SPACES,Maintenance - Grounds,Cultural and Related Services
Swale Borough Council,29UM,28/11/2018,1163693,313.20,WESTBURY SIGNS LTD,6523147                  ,ENVIRONMENTAL RESPONSE TEAM,Signage - External Funded by Grant & Other Income,Planning and Development Services
Swale Borough Council,29UM,28/11/2018,1163822,379.98,WHISTL UK LIMITED,04417047                 ,REVENUE SERVICES,Postage,Central Services to the Public
Swale Borough Council,29UM,28/11/2018,1163822,189.98,WHISTL UK LIMITED,04417047                 ,REVENUE SERVICES,Postage,Housing
Swale Borough Council,29UM,28/11/2018,1163822,13.46,WHISTL UK LIMITED,04417047                 ,CAR PARKS,Postage,Internal Trading Cost Centres
Swale Borough Council,29UM,28/11/2018,1163822,146.65,WHISTL UK LIMITED,04417047                 ,PROPERTY SERVICES,Postage,Holding Codes
Swale Borough Council,29UM,28/11/2018,1163822,277.31,WHISTL UK LIMITED,04417047                 ,DEMOCRATIC & ELECTORAL SERVICES,Postage,Central Services to the Public
Swale Borough Council,29UM,28/11/2018,1163611,440.00,WILLOW TREE HOME SOLUTIONS LTD,                         ,HOUSING SERVICES,Staying Put small repairs (contractors),Housing
Swale Borough Council,29UM,28/11/2018,1163876,382.20,WILLOW TREE HOME SOLUTIONS LTD,                         ,HOUSING SERVICES,Staying Put small repairs (contractors),Housing
Swale Borough Council,29UM,28/11/2018,1163922,5859.80,WINDSOR FITTED FURNITURE LTD,05360338                 ,HOUSING SERVICES,Housing Renovation Grants,Not used in this Structure
Swale Borough Council,29UM,28/11/2018,1163948,1597.21,WORLDPAY (DT),07316500                 ,REVENUE SERVICES,Commission Paid,Central Services to the Public
Swale Borough Council,29UM,28/11/2018,1163948,21.87,WORLDPAY (DT),07316500                 ,REVENUE SERVICES,Commission Paid,Central Services to the Public
Swale Borough Council,29UM,28/11/2018,1163948,21.87,WORLDPAY (DT),07316500                 ,REVENUE SERVICES,Commission Paid,Housing
Swale Borough Council,29UM,28/11/2018,1163948,10.93,WORLDPAY (DT),07316500                 ,EXCHEQUER,Commission Paid,Internal Trading Cost Centres
Swale Borough Council,29UM,28/11/2018,1163948,532.41,WORLDPAY (DT),07316500                 ,EXCHEQUER,Commission Paid,Internal Trading Cost Centres
Swale Borough Council,29UM,28/11/2018,1163948,2.64,WORLDPAY (DT),07316500                 ,EXCHEQUER,Commission Paid,Internal Trading Cost Centres
Swale Borough Council,29UM,28/11/2018,1163951,2322.60,WORLDPAY (DT),07316500                 ,REVENUE SERVICES,Commission Paid,Central Services to the Public
Swale Borough Council,29UM,28/11/2018,1163951,13.99,WORLDPAY (DT),07316500                 ,REVENUE SERVICES,Commission Paid,Central Services to the Public
Swale Borough Council,29UM,28/11/2018,1163951,27.98,WORLDPAY (DT),07316500                 ,REVENUE SERVICES,Commission Paid,Housing
Swale Borough Council,29UM,28/11/2018,1163951,13.99,WORLDPAY (DT),07316500                 ,EXCHEQUER,Commission Paid,Internal Trading Cost Centres
Swale Borough Council,29UM,28/11/2018,1163951,419.70,WORLDPAY (DT),07316500                 ,EXCHEQUER,Commission Paid,Internal Trading Cost Centres
Swale Borough Council,29UM,28/11/2018,1163951,3.03,WORLDPAY (DT),07316500                 ,EXCHEQUER,Commission Paid,Internal Trading Cost Centres
